bitfinex-derivatives/quotes_ETHF0:USTF0_20241102
["timestamp","ask_amount","ask_price","bid_price","bid_amount"]
[1730533496051,4.84546606,2507.5,2507.4,2.44137653]
[1730533499054,4.84546606,2507.5,2507.4,2.44131039]
[1730533501361,4.84546606,2507.5,2507.4,2.44132165]
[1730533507874,4.84546606,2507.5,2507.4,2.16205165]
[1730533508083,4.84546606,2507.5,2507.4,2.44132165]
[1730533508476,4.84546606,2507.5,2507.4,2.19187522]
[1730533508681,4.84546606,2507.5,2507.4,2.44137881]
[1730533509974,4.84546606,2507.5,2507.4,2.16210881]
[1730533510175,10.79102918,2507.5,2507.4,0.11229229]
[1730533510378,0.27932,2507.0,2506.8,0.74102]
[1730533510581,1.87233453,2506.9,2506.8,0.74102]
[1730533510781,1.87233453,2506.9,2506.8,0.99057353]
[1730533511370,4.5620908,2507.0,2506.8,0.71125353]
[1730533511575,3.2078,2507.1,2507.0,0.27931]
[1730533511772,3.2078,2507.1,2507.0,0.52885834]
[1730533511977,3.2078,2507.1,2507.0,4.51765834]
[1730533512470,3.2078,2507.1,2507.0,4.26811]
[1730533512675,3.2078,2507.1,2507.0,4.51763176]
[1730533513981,4.64363453,2507.2,2507.0,4.23832176]
[1730533514176,4.64363453,2507.2,2507.1,0.52882176]
[1730533515576,1.43583453,2507.2,2507.1,0.52882176]
[1730533515779,4.64363453,2507.2,2507.1,0.2793]
[1730533516084,4.64363453,2507.2,2507.1,0.52881751]
[1730533518477,1.43583453,2507.2,2507.1,0.52881751]
[1730533518678,4.64363453,2507.2,2507.1,0.52881751]
[1730533519082,1.43583453,2507.2,2507.1,0.52881751]
[1730533519285,4.64363453,2507.2,2507.1,0.52881751]
[1730533519581,1.43583453,2507.2,2507.1,0.52882062]
[1730533520379,1.43583453,2507.2,2507.1,1.6860581]
[1730533522184,1.43583453,2507.2,2507.1,2.28458636]
[1730533522379,1.43583453,2507.2,2507.1,2.40934493]
[1730533523380,1.43583453,2507.2,2507.1,2.40939773]
[1730533524676,1.43583453,2507.2,2507.1,2.40940124]
[1730533527088,1.43583453,2507.2,2507.1,0.2793]
[1730533527292,1.43583453,2507.2,2507.1,2.40938162]
[1730533530681,1.43583453,2507.2,2507.1,0.2793]
[1730533530878,1.43583453,2507.2,2507.1,2.4094095]
[1730533532884,1.43583453,2507.2,2507.1,1.45172865]
[1730533533096,1.86803453,2507.2,2507.1,1.45172865]
[1730533534389,1.86803453,2507.2,2507.1,1.45175028]
[1730533534788,1.86803453,2507.2,2507.1,0.72844069]
[1730533534994,1.86803453,2507.2,2507.1,1.45177287]
[1730533535195,1.86803453,2507.2,2507.1,2.40947632]
[1730533535689,1.86803453,2507.2,2507.1,1.45177287]
[1730533535994,1.86803453,2507.2,2507.1,2.40948309]
[1730533536896,1.86803453,2507.2,2507.1,0.2793]
[1730533537090,1.86803453,2507.2,2507.1,2.40947438]
[1730533537991,1.86803453,2507.2,2507.1,1.83559142]
[1730533538191,1.86803453,2507.2,2507.1,2.4094822]
[1730533541001,5.0028908,2507.4,2507.1,2.1301822]
[1730533541200,4.1683417,2507.7,2507.2,7.00561409]
[1730533541201,3.12625627,2507.6,2507.2,7.00561409]
[1730533541495,3.12625627,2507.6,2507.5,0.27926]
[1730533541701,4.5620908,2507.7,2507.6,0.27924]
[1730533541898,1.43583453,2507.7,2507.6,3.29595284]
[1730533542499,1.43583453,2507.7,2507.6,2.33820315]
[1730533542887,1.43583453,2507.7,2507.6,3.29550345]
[1730533543092,1.43583453,2507.7,2507.6,3.29550022]
[1730533543293,1.43583453,2507.7,2507.6,2.33820315]
[1730533543489,1.43583453,2507.7,2507.6,3.29531241]
[1730533543798,1.43583453,2507.7,2507.6,2.08872944]
[1730533544192,1.43583453,2507.7,2507.6,2.33819705]
[1730533544393,1.43583453,2507.7,2507.6,2.08872944]
[1730533545395,1.43583453,2507.7,2507.6,2.08824732]
[1730533545797,1.43583453,2507.7,2507.6,2.08817577]
[1730533548397,1.43583453,2507.7,2507.6,2.08799658]
[1730533548907,1.43583453,2507.7,2507.6,1.16584]
[1730533549098,1.43583453,2507.7,2507.6,2.08792514]
[1730533550504,1.43583453,2507.7,2507.6,1.49014104]
[1730533550706,1.43583453,2507.7,2507.6,2.08780432]
[1730533551299,1.43583453,2507.7,2507.6,1.49014104]
[1730533552204,1.43583453,2507.7,2507.6,2.08775034]
[1730533552395,1.43583453,2507.7,2507.6,1.16584]
[1730533552707,1.43583453,2507.7,2507.6,1.49014195]
[1730533554706,1.43583453,2507.7,2507.6,2.08761111]
[1730533555003,1.43583453,2507.7,2507.6,2.08761409]
[1730533555211,1.86053453,2507.8,2507.7,0.27923]
[1730533555509,1.86053453,2507.8,2507.7,0.40396152]
[1730533556099,1.86053453,2507.8,2507.7,0.27923]
[1730533556306,1.86053453,2507.8,2507.7,0.40395992]
[1730533556622,1.86053453,2507.8,2507.7,0.27923]
[1730533556910,1.86053453,2507.8,2507.7,0.40396066]
[1730533560609,2.13975453,2507.8,2507.7,0.40396066]
[1730533561507,2.13975453,2507.8,2507.7,0.40396468]
[1730533562214,1.86053453,2507.8,2507.7,0.40396468]
[1730533563416,2.13975453,2507.8,2507.7,0.40396468]
[1730533563620,1.86053453,2507.8,2507.7,0.40396468]
[1730533564508,2.13975453,2507.8,2507.7,0.40396468]
[1730533564715,1.86053453,2507.8,2507.7,0.12473468]
[1730533564921,2.13975453,2507.8,2507.7,0.12473468]
[1730533565911,2.13975453,2507.8,2507.7,0.40396468]
[1730533566621,1.86053453,2507.8,2507.7,0.40396468]
[1730533566816,2.13975453,2507.8,2507.7,0.40396468]
[1730533567016,2.13975453,2507.8,2507.7,0.40396211]
[1730533567221,1.86053453,2507.8,2507.7,0.40396211]
[1730533567421,2.13975453,2507.8,2507.7,0.40396211]
[1730533569024,2.13975453,2507.8,2507.7,0.40396335]
[1730533570219,2.13975453,2507.8,2507.7,0.40396282]
[1730533571421,1.86053453,2507.8,2507.7,0.40396282]
[1730533572426,3.2078,2507.9,2507.8,0.27922]
[1730533572626,3.2078,2507.9,2507.8,1.27465282]
[1730533573629,3.2078,2507.9,2507.8,2.07177766]
[1730533573934,3.6336,2507.9,2507.8,2.07177766]
[1730533575633,5.06943453,2507.9,2507.8,2.07177766]
[1730533576429,1.86163453,2507.9,2507.8,2.07177766]
[1730533577940,1.86163453,2507.9,2507.8,2.07172824]
[1730533578445,1.86163453,2507.9,2507.8,1.47419375]
[1730533578633,1.86163453,2507.9,2507.8,2.07175625]
[1730533582447,1.86163453,2507.9,2507.8,2.32119731]
[1730533583336,0.4258,2507.9,2507.8,3.2778728]
[1730533583543,8.22927777,2508.4,2507.8,11.62948733]
[1730533583744,5.54593453,2508.4,2508.3,0.27917]
[1730533583946,5.54593453,2508.4,2508.3,0.60341111]
[1730533584145,5.54593453,2508.4,2508.3,1.20127573]
[1730533584339,5.08503453,2508.4,2508.3,1.20125876]
[1730533585249,5.08503453,2508.4,2508.3,0.60341111]
[1730533585540,5.08503453,2508.4,2508.3,1.20125716]
[1730533587450,1.87723453,2508.4,2508.3,0.60341111]
[1730533587644,1.87723453,2508.4,2508.3,1.20118359]
[1730533588041,3.6694,2508.5,2508.3,2.35784812]
[1730533588345,0.4609,2508.6,2508.5,0.27914]
[1730533588346,2.35543453,2508.6,2508.5,0.27914]
[1730533588541,1.89453453,2508.6,2508.5,0.60336488]
[1730533589253,1.89453453,2508.6,2508.5,0.47863865]
[1730533589548,1.43583453,2508.6,2508.5,1.27568651]
[1730533589749,1.43583453,2508.6,2508.5,0.80282373]
[1730533590545,1.43583453,2508.6,2508.5,0.60332522]
[1730533590744,1.43583453,2508.6,2508.5,0.80282148]
[1730533591243,1.43583453,2508.6,2508.5,0.60332522]
[1730533592040,1.43583453,2508.6,2508.5,0.80281417]
[1730533592242,1.43583453,2508.6,2508.5,0.60332522]
[1730533592450,1.43583453,2508.6,2508.5,0.80281673]
[1730533592645,1.43583453,2508.6,2508.5,0.80281685]
[1730533593243,1.43583453,2508.6,2508.5,0.60332522]
[1730533593642,2.80293453,2508.8,2508.5,0.32418522]
[1730533593946,2.0784716,2508.9,2508.8,0.27911]
[1730533594144,2.5406716,2508.9,2508.8,0.27911]
[1730533594551,2.0784716,2508.9,2508.8,4.26471]
[1730533595057,2.0784716,2508.9,2508.8,0.27911]
[1730533596352,2.0784716,2508.9,2508.8,4.26471]
[1730533596546,2.0784716,2508.9,2508.8,0.27911]
[1730533597146,3.51430613,2508.9,2508.8,0.27911]
[1730533597845,3.79340613,2508.9,2508.8,0.27911]
[1730533598357,3.51430613,2508.9,2508.8,0.27911]
[1730533601248,2.0784716,2508.9,2508.8,0.27911]
[1730533603951,2.0784716,2508.9,2508.8,1.16501]
[1730533606564,3.51430613,2508.9,2508.8,1.16501]
[1730533607561,3.51430613,2508.9,2508.8,0.72341]
[1730533609757,1.43583453,2508.9,2508.8,0.72341]
[1730533612557,1.43583453,2508.9,2508.8,0.27911]
[1730533615759,1.71493453,2508.9,2508.8,0.27911]
[1730533623665,1.43583453,2508.9,2508.8,0.27911]
[1730533624471,1.43583453,2509.0,2508.9,0.2791]
[1730533625161,1.71492453,2509.0,2508.9,0.2791]
[1730533625960,1.43583453,2509.0,2508.9,0.2791]
[1730533626362,1.43583453,2509.0,2508.9,0.40377503]
[1730533627062,1.71492453,2509.0,2508.9,0.40377503]
[1730533629267,1.43583453,2509.0,2508.9,1.20118088]
[1730533629474,1.43583453,2509.0,2508.9,0.2791]
[1730533629676,1.43583453,2509.0,2508.9,0.60325159]
[1730533630468,1.71492453,2509.0,2508.9,0.60325159]
[1730533631279,1.71492453,2509.0,2508.9,1.20128337]
[1730533631775,1.43583453,2509.0,2508.9,1.20128337]
[1730533632673,1.43583453,2509.0,2508.9,0.92218337]
[1730533632674,1.71492453,2509.0,2508.9,0.92218337]
[1730533632881,1.71492453,2509.0,2508.9,0.12467369]
[1730533633371,5.36045831,2509.0,2508.9,0.32416495]
[1730533633963,5.36045831,2509.0,2508.9,0.12467369]
[1730533634566,5.36045831,2509.0,2508.9,0.32416483]
[1730533634971,5.36045831,2509.0,2508.9,0.60326483]
[1730533635172,5.36045831,2509.0,2508.9,1.20179135]
[1730533636873,5.36045831,2509.0,2508.9,1.2017955]
[1730533638080,5.36045831,2509.0,2508.9,0.9226955]
[1730533638679,5.36045831,2509.0,2508.9,1.2017955]
[1730533639080,5.36045831,2509.0,2508.9,0.87762652]
[1730533639272,5.36045831,2509.0,2508.9,1.20179843]
[1730533640474,5.36045831,2509.0,2508.9,0.2791]
[1730533640679,5.36045831,2509.0,2508.9,1.20195244]
[1730533641580,5.36045831,2509.0,2508.9,0.92285244]
[1730533641774,1.71492453,2509.0,2508.9,0.32417082]
[1730533641974,1.71492453,2509.0,2508.9,0.32417503]
[1730533642374,1.71492453,2509.0,2508.9,0.60327503]
[1730533642582,5.37021388,2509.0,2508.9,0.60327503]
[1730533644075,1.71492453,2509.0,2508.9,0.60327503]
[1730533644373,5.3702009,2509.0,2508.9,1.20190205]
[1730533644783,5.3702009,2509.0,2508.9,0.6032694]
[1730533645078,5.3702009,2509.0,2508.9,1.20189609]
[1730533645582,5.3702009,2509.0,2508.9,0.6032694]
[1730533648087,5.3702009,2509.0,2508.9,0.60326935]
[1730533648483,5.3702009,2509.0,2508.9,1.20187295]
[1730533649186,5.0911109,2509.0,2508.9,1.20187295]
[1730533649491,5.3702009,2509.0,2508.9,1.20187295]
[1730533651388,7.77517637,2509.1,2508.9,0.92277295]
[1730533651587,7.77517637,2509.1,2508.6,2.66983622]
[1730533651588,6.86307637,2509.1,2509.0,1.34307883]
[1730533651779,3.2078,2509.1,2509.0,2.06638949]
[1730533651979,6.3417165,2509.1,2509.0,2.3157256]
[1730533652385,6.34157566,2509.1,2509.0,2.3157256]
[1730533653582,6.34157566,2509.1,2509.0,3.27347664]
[1730533653781,3.2078,2509.1,2509.0,3.27347664]
[1730533655289,3.2078,2509.1,2509.0,1.14359]
[1730533655591,3.2078,2509.1,2509.0,2.69959029]
[1730533655792,3.2078,2509.1,2509.0,3.27302932]
[1730533656184,3.2078,2509.1,2509.0,7.25862932]
[1730533657889,5.28716019,2509.4,2509.3,0.27905]
[1730533658079,8.49496019,2509.4,2509.3,0.60316771]
[1730533658282,8.49496019,2509.4,2509.3,0.40371066]
[1730533658690,8.49496019,2509.4,2509.3,0.60316637]
[1730533658891,8.49496019,2509.4,2509.3,0.27905]
[1730533659191,8.49496019,2509.4,2509.3,0.40370968]
[1730533659392,3.13377566,2509.5,2509.3,0.92213204]
[1730533659591,3.13377566,2509.5,2509.1,0.4629]
[1730533659592,3.13377566,2509.5,2509.4,1.28579968]
[1730533659995,3.13377566,2509.5,2509.4,1.48523341]
[1730533660182,3.13377566,2509.5,2509.4,1.28579968]
[1730533660385,4.56961019,2509.6,2509.4,1.80408954]
[1730533660590,1.43583453,2509.6,2509.5,0.60312063]
[1730533660783,1.43583453,2509.6,2509.5,1.03692063]
[1730533661190,1.43583453,2509.6,2509.5,0.83748968]
[1730533662091,1.43583453,2509.6,2509.5,0.83747327]
[1730533662293,4.56961019,2509.7,2509.6,0.27902]
[1730533662592,1.43583453,2509.7,2509.6,0.40366327]
[1730533664398,1.43583453,2509.7,2509.6,0.27902]
[1730533664791,1.71484453,2509.7,2509.6,0.27902]
[1730533665089,1.43583453,2509.7,2509.6,0.40366145]
[1730533666094,1.43583453,2509.7,2509.6,0.27902]
[1730533666700,1.43583453,2509.7,2509.6,0.40366022]
[1730533668202,1.43583453,2509.7,2509.6,0.27902]
[1730533668695,1.43583453,2509.7,2509.6,0.40365885]
[1730533669291,1.43583453,2509.7,2509.6,0.27902]
[1730533670395,1.71483453,2509.8,2509.7,0.27901]
[1730533670794,1.43583453,2509.8,2509.7,0.27901]
[1730533671499,1.71483453,2509.8,2509.7,0.27901]
[1730533672796,1.71483453,2509.8,2509.6,0.27901]
[1730533673200,1.71484453,2509.8,2509.6,0.27901]
[1730533673609,4.92264453,2509.8,2509.5,0.4338]
[1730533673809,4.92264453,2509.8,2509.6,0.27901]
[1730533674006,4.64363453,2509.8,2509.6,0.27901]
[1730533674201,0.74101,2509.7,2509.6,0.27901]
[1730533674406,2.17684453,2509.7,2509.6,0.27901]
[1730533674615,1.89783453,2509.7,2509.6,0.27901]
[1730533676701,0.462,2509.7,2509.6,0.27901]
[1730533677910,4.64363453,2509.8,2509.5,0.4338]
[1730533678113,4.64363453,2509.8,2509.7,0.27901]
[1730533679506,3.2078,2509.8,2509.7,0.27901]
[1730533680005,0.8767,2509.9,2509.8,0.279]
[1730533681112,0.8767,2509.9,2509.8,0.7003]
[1730533681316,3.2078,2510.1,2510.0,0.27898]
[1730533681612,3.2078,2510.1,2510.0,1.71481453]
[1730533684414,3.2078,2510.1,2510.0,5.69881453]
[1730533685317,3.2078,2510.1,2510.0,1.71481453]
[1730533685919,3.2078,2510.1,2510.0,0.27898]
[1730533686819,0.8894,2510.2,2510.1,0.27897]
[1730533687821,4.0972,2510.2,2510.1,0.27897]
[1730533688322,0.8894,2510.2,2510.1,0.27897]
[1730533688622,4.0972,2510.2,2510.1,0.27897]
[1730533689019,0.8894,2510.2,2510.1,0.27897]
[1730533689218,4.0972,2510.2,2510.1,0.27897]
[1730533689716,0.8894,2510.2,2510.1,0.27897]
[1730533689912,4.0972,2510.2,2510.1,0.27897]
[1730533690526,3.2078,2510.2,2510.1,1.71480453]
[1730533696110,3.2078,2510.2,2510.1,5.69880453]
[1730533696319,0.4237,2510.3,2510.2,0.27895]
[1730533696525,0.4237,2510.3,2510.2,1.12675]
[1730533696725,0.4237,2510.3,2510.2,1.57105]
[1730533698419,3.2078,2510.5,2510.4,0.27893]
[1730533698618,3.67,2510.5,2510.4,0.27893]
[1730533698815,3.94892,2510.5,2510.4,0.27893]
[1730533701522,0.74112,2510.5,2510.4,0.27893]
[1730533703826,0.4622,2510.5,2510.4,0.27893]
[1730533706133,0.4622,2510.5,2510.4,1.71476453]
[1730533707830,0.4622,2510.5,2510.4,1.83935975]
[1730533709429,0.4622,2510.5,2510.4,1.71476453]
[1730533709624,0.4622,2510.5,2510.4,1.83935456]
[1730533709831,0.4622,2510.5,2510.4,1.83935407]
[1730533710428,0.8712,2510.7,2510.4,5.54362407]
[1730533710642,1.3104,2510.7,2510.6,1.71474453]
[1730533711242,1.3104,2510.7,2510.6,1.83932761]
[1730533711829,1.3104,2510.7,2510.6,1.71474453]
[1730533713041,1.3104,2510.7,2510.6,1.8393306]
[1730533713236,1.3104,2510.7,2510.6,1.71474453]
[1730533713739,1.3104,2510.7,2510.6,1.83932744]
[1730533714135,1.3104,2510.7,2510.6,1.71474453]
[1730533714934,1.3104,2510.7,2510.6,1.8393301]
[1730533715133,1.3104,2510.7,2510.6,1.71474453]
[1730533715333,1.3104,2510.7,2510.6,1.83932999]
[1730533716235,0.8632,2510.7,2510.6,1.83932999]
[1730533716739,0.4392,2510.7,2510.6,1.83932999]
[1730533716939,3.2078,2510.9,2510.8,0.27889]
[1730533717239,3.6694,2510.9,2510.8,1.71472453]
[1730533717939,3.6694,2510.9,2510.8,0.27889]
[1730533718335,3.6694,2510.9,2510.8,1.71472453]
[1730533719134,4.1049,2510.9,2510.8,1.71472453]
[1730533719836,4.1049,2510.9,2510.8,1.83929773]
[1730533721144,4.1049,2510.9,2510.8,1.83929955]
[1730533721440,4.1049,2510.9,2510.8,1.71472453]
[1730533721658,4.1049,2510.9,2510.8,1.83929579]
[1730533723443,4.1049,2510.9,2510.8,1.71472453]
[1730533723744,4.1049,2510.9,2510.8,1.83930239]
[1730533724338,5.54073453,2510.9,2510.7,0.27889]
[1730533724537,0.27889,2510.8,2510.7,0.27889]
[1730533725645,5.54073453,2510.9,2510.5,0.8872]
[1730533725833,0.711,2510.7,2510.6,0.40349689]
[1730533726447,0.4321,2510.7,2510.6,0.40349689]
[1730533727044,0.711,2510.7,2510.6,0.27891]
[1730533728244,0.711,2510.7,2510.6,0.40350317]
[1730533728744,0.4321,2510.7,2510.6,0.40350317]
[1730533728947,0.4321,2510.7,2510.6,0.4035019]
[1730533730951,0.711,2510.7,2510.6,0.4035019]
[1730533732650,0.4321,2510.7,2510.6,0.4035019]
[1730533732846,0.4321,2510.7,2510.6,0.27891]
[1730533733047,0.4321,2510.7,2510.6,0.40350141]
[1730533734152,0.711,2510.7,2510.6,0.40350141]
[1730533735055,0.4321,2510.7,2510.6,0.40350141]
[1730533736759,0.4321,2510.7,2510.6,0.27891]
[1730533736950,0.4321,2510.7,2510.6,0.40350108]
[1730533738656,0.4321,2510.7,2510.6,0.27891]
[1730533738856,0.4321,2510.7,2510.6,0.12459197]
[1730533739055,0.711,2510.7,2510.6,0.124593]
[1730533740648,0.4321,2510.7,2510.5,0.27892]
[1730533740862,0.8491,2510.6,2510.5,0.27892]
[1730533741051,0.8491,2510.6,2510.5,0.60286572]
[1730533742057,1.12801,2510.6,2510.5,0.60286572]
[1730533742860,1.12801,2510.6,2510.5,0.32394572]
[1730533743158,9.68082019,2510.6,2510.5,0.12459451]
[1730533743462,0.27895,2510.3,2510.2,0.27895]
[1730533743650,0.27895,2510.3,2510.2,0.40356163]
[1730533743957,0.27895,2510.3,2510.2,0.40356119]
[1730533744158,1.13825,2510.3,2510.2,0.12461119]
[1730533744550,5.12225,2510.3,2510.2,0.12461119]
[1730533746247,1.13825,2510.3,2510.2,0.12461119]
[1730533746654,2.57408453,2510.3,2510.2,0.12461119]
[1730533746853,2.57408453,2510.3,2510.2,0.40356119]
[1730533747048,2.57408453,2510.3,2510.2,0.12461119]
[1730533748456,2.57408453,2510.3,2510.1,0.27896]
[1730533749561,2.29513453,2510.3,2510.1,0.27896]
[1730533749959,0.27895,2510.2,2510.0,0.4384]
[1730533750156,0.27895,2510.2,2510.1,0.12461779]
[1730533750555,1.71478453,2510.2,2510.1,0.12461779]
[1730533750863,1.43583453,2510.2,2510.0,0.71737]
[1730533751168,0.27897,2510.1,2510.0,0.71737]
[1730533751353,0.27897,2510.1,2510.0,0.84199409]
[1730533751557,0.27897,2510.1,2510.0,0.71737]
[1730533751963,0.27897,2510.1,2510.0,0.84199279]
[1730533752350,0.27896,2510.2,2510.0,0.71737]
[1730533752962,3.48676,2510.2,2510.0,0.71737]
[1730533753359,0.27896,2510.2,2510.0,0.71737]
[1730533753569,3.48676,2510.2,2510.0,0.71737]
[1730533755058,3.48676,2510.2,2510.1,0.27897]
[1730533755362,3.48676,2510.2,2510.0,0.4384]
[1730533755564,3.48676,2510.2,2510.0,0.71737]
[1730533756255,3.48676,2510.2,2510.1,0.27897]
[1730533756665,3.2078,2510.2,2510.1,0.27897]
[1730533756866,3.2078,2510.2,2510.1,1.71480453]
[1730533757169,3.2078,2510.2,2510.1,1.83941638]
[1730533759160,3.2078,2510.2,2510.1,0.40358225]
[1730533760560,3.2078,2510.2,2510.1,0.27897]
[1730533760768,3.2078,2510.2,2510.1,0.40358085]
[1730533761264,1.71477453,2510.4,2510.2,0.27895]
[1730533761461,1.71477453,2510.4,2510.3,1.59344]
[1730533761665,1.71477453,2510.4,2510.3,1.3145]
[1730533761863,5.69797453,2510.4,2510.3,1.59344]
[1730533762066,3.6697,2510.5,2510.4,0.27893]
[1730533762258,0.4619,2510.5,2510.4,0.27893]
[1730533762563,1.71475453,2510.6,2510.5,0.27892]
[1730533763158,1.71475453,2510.6,2510.4,0.27893]
[1730533763562,1.43583453,2510.6,2510.3,1.3145]
[1730533763761,1.43583453,2510.6,2510.5,0.27892]
[1730533764568,0.7227,2510.7,2510.3,2.75033453]
[1730533764866,0.7227,2510.7,2510.6,0.27891]
[1730533765061,0.4438,2510.7,2510.6,0.27891]
[1730533765766,0.7227,2510.7,2510.6,0.27891]
[1730533766167,0.27891,2510.6,2510.5,0.27892]
[1730533766563,0.7227,2510.7,2510.6,0.27891]
[1730533767161,0.27891,2510.6,2510.5,0.27892]
[1730533767463,0.72271,2510.7,2510.6,0.27891]
[1730533768067,0.72271,2510.7,2510.5,0.27892]
[1730533768465,0.72271,2510.7,2510.6,0.4235]
[1730533769573,3.93051,2510.7,2510.6,0.4235]
[1730533769767,3.48671,2510.7,2510.6,0.70241]
[1730533770271,3.48671,2510.7,2510.6,0.82700546]
[1730533770971,0.27891,2510.7,2510.6,0.82700546]
[1730533771271,0.27891,2510.7,2510.6,0.54809528]
[1730533771672,0.27891,2510.7,2510.6,0.82700528]
[1730533772265,0.27891,2510.7,2510.6,0.54809528]
[1730533773772,3.48671,2510.7,2510.6,0.82700528]
[1730533773973,3.48671,2510.7,2510.6,0.54809528]
[1730533774676,0.27891,2510.7,2510.6,0.54809528]
[1730533775068,3.48671,2510.7,2510.6,0.5480954]
[1730533775571,3.48671,2510.7,2510.6,0.8270054]
[1730533776873,0.27891,2510.7,2510.6,0.8270054]
[1730533777370,0.27891,2510.7,2510.6,0.5480954]
[1730533777869,0.27891,2510.7,2510.6,0.1245954]
[1730533778674,3.48671,2510.7,2510.6,0.1245954]
[1730533779175,3.48671,2510.7,2510.6,0.12459576]
[1730533779673,3.48671,2510.7,2510.5,0.27892]
[1730533779870,3.48671,2510.7,2510.6,0.12459588]
[1730533780072,1.71474453,2510.7,2510.6,0.12459588]
[1730533780273,4.92254453,2510.7,2510.6,0.12459588]
[1730533780476,4.92254453,2510.7,2510.1,0.27896]
[1730533780477,0.27895,2510.3,2510.1,0.27896]
[1730533780777,2.33153453,2510.2,2510.1,0.27896]
[1730533780979,2.33153453,2510.2,2510.1,0.40357063]
[1730533782566,0.8957,2510.2,2510.1,0.40357063]
[1730533787370,0.8957,2510.2,2510.1,0.40357438]
[1730533787571,0.8957,2510.2,2510.1,0.40357437]
[1730533790884,2.33153453,2510.2,2510.1,0.40357437]
[1730533791781,2.33153453,2510.2,2510.1,0.40357458]
[1730533792985,0.4529,2510.2,2510.1,0.60295537]
[1730533793279,0.4529,2510.2,2510.1,0.60294933]
[1730533793482,0.4529,2510.2,2510.1,0.40357458]
[1730533795386,0.4529,2510.2,2510.1,0.40357649]
[1730533796783,0.73185,2510.2,2510.1,0.12461649]
[1730533796985,2.59048453,2510.2,2510.1,0.12461649]
[1730533797290,2.59048453,2510.2,2510.1,0.40358649]
[1730533800283,2.59048453,2510.2,2510.1,0.4035875]
[1730533800490,2.31153453,2510.2,2510.1,0.4035875]
[1730533800680,2.59048453,2510.2,2510.1,0.4035875]
[1730533800876,2.59048453,2510.2,2510.1,0.1246175]
[1730533802081,2.59048453,2510.2,2510.0,0.27897]
[1730533802284,2.59048453,2510.2,2510.1,0.12461891]
[1730533802493,0.27898,2510.0,2509.9,0.27898]
[1730533802683,1.43583453,2510.0,2509.9,1.20053393]
[1730533802881,1.43583453,2510.0,2509.9,0.60300355]
[1730533804892,1.71481453,2510.0,2509.9,0.60300492]
[1730533805390,1.71481453,2510.0,2509.9,0.60300249]
[1730533805591,1.71481453,2510.0,2509.9,0.40360444]
[1730533805987,1.71481453,2510.0,2509.9,0.40360851]
[1730533808496,1.43583453,2510.0,2509.9,0.40360851]
[1730533809897,1.71481453,2510.0,2509.9,0.40360851]
[1730533810891,1.43583453,2510.0,2509.9,0.40360851]
[1730533811087,1.71481453,2510.0,2509.9,0.40360851]
[1730533811493,1.43583453,2510.0,2509.9,0.40360851]
[1730533812803,1.71481453,2510.0,2509.9,0.12462851]
[1730533813199,1.43583453,2510.0,2509.7,0.279]
[1730533813394,1.43583453,2509.8,2509.7,0.279]
[1730533813694,1.71483453,2509.8,2509.7,0.60304511]
[1730533813900,1.71483453,2509.8,2509.7,1.20022921]
[1730533814097,1.71483453,2509.8,2509.7,1.20023852]
[1730533814299,1.71483453,2509.8,2509.7,0.60304511]
[1730533814494,1.71483453,2509.8,2509.7,0.12463273]
[1730533814495,4.92263453,2509.8,2509.7,0.12463273]
[1730533814899,4.92263453,2509.8,2509.7,0.40364273]
[1730533815103,4.92263453,2509.8,2509.7,0.12463273]
[1730533815405,4.92263453,2509.8,2509.6,0.27901]
[1730533816602,4.92263453,2509.8,2509.6,0.27902]
[1730533816804,5.34813453,2509.8,2509.6,0.27902]
[1730533817902,5.06913453,2509.8,2509.6,0.27902]
[1730533818206,0.27901,2509.7,2509.6,0.27902]
[1730533818506,1.71484453,2509.7,2509.6,0.40366303]
[1730533820003,1.43583453,2509.7,2509.6,0.40366303]
[1730533820600,1.71484453,2509.7,2509.6,0.40366303]
[1730533820999,1.71484453,2509.7,2509.6,0.27902]
[1730533821200,1.71484453,2509.7,2509.6,0.12464453]
[1730533821606,1.71484453,2509.7,2509.6,0.40366453]
[1730533822196,1.43583453,2509.7,2509.6,0.40366453]
[1730533824510,1.71484453,2509.7,2509.6,0.40366453]
[1730533824813,1.71484453,2509.7,2509.6,0.12464453]
[1730533825406,1.71484453,2509.7,2509.6,0.27902]
[1730533825613,1.71484453,2509.7,2509.6,0.52830988]
[1730533828910,1.71484453,2509.7,2509.6,0.52830887]
[1730533829510,1.71484453,2509.7,2509.6,0.40366347]
[1730533831803,1.71484453,2509.7,2509.6,0.12464347]
[1730533832807,1.71484453,2509.7,2509.5,1.63463]
[1730533833001,1.71484453,2509.7,2509.6,0.1246436]
[1730533835015,1.71484453,2509.7,2509.6,0.4036636]
[1730533836110,1.71484453,2509.7,2509.6,0.1246436]
[1730533836809,1.71484453,2509.7,2509.5,1.63463]
[1730533837022,4.92264453,2509.7,2509.6,0.40366325]
[1730533837317,4.92264453,2509.7,2509.6,0.40366377]
[1730533838411,1.71484453,2509.7,2509.6,0.40366377]
[1730533840721,1.71484453,2509.7,2509.6,0.40366182]
[1730533841018,1.71484453,2509.7,2509.6,0.12464182]
[1730533841612,1.71484453,2509.7,2509.6,0.32406935]
[1730533841811,1.71484453,2509.7,2509.6,0.12464182]
[1730533842412,1.71484453,2509.7,2509.6,0.32407083]
[1730533842612,1.71484453,2509.7,2509.6,0.60309083]
[1730533843216,1.71484453,2509.7,2509.6,0.32407083]
[1730533843411,1.71484453,2509.7,2509.6,0.32407172]
[1730533844320,4.92264453,2509.7,2509.6,0.27902]
[1730533844618,4.92264453,2509.7,2509.6,1.20094073]
[1730533845023,1.71484453,2509.7,2509.6,1.20093984]
[1730533845515,1.71484453,2509.7,2509.6,0.92191984]
[1730533845828,1.71484453,2509.7,2509.6,1.20093984]
[1730533848621,1.71484453,2509.7,2509.6,0.27902]
[1730533848924,1.86003453,2509.7,2509.6,1.20115767]
[1730533849812,1.86003453,2509.7,2509.6,1.4504329]
[1730533850019,1.86003453,2509.7,2509.6,1.20115767]
[1730533850619,1.86003453,2509.7,2509.6,1.4504375]
[1730533850819,1.86003453,2509.7,2509.6,1.45043817]
[1730533851119,1.43583453,2509.7,2509.6,1.20115767]
[1730533851326,1.43583453,2509.7,2509.6,1.45043895]
[1730533851927,1.43583453,2509.7,2509.6,0.27902]
[1730533852117,1.43583453,2509.7,2509.6,1.20128699]
[1730533852429,1.43583453,2509.7,2509.6,2.37284877]
[1730533855323,1.43583453,2509.7,2509.6,3.3302666]
[1730533855525,4.84624009,2509.7,2509.6,3.3302666]
[1730533855727,4.84624009,2509.7,2509.6,2.37302611]
[1730533856322,5.30124009,2509.7,2509.6,3.3305587]
[1730533859026,5.30124009,2509.7,2509.6,1.20128699]